Workbook

Sheet ΜΗΝΙΑΙΑ ΑΜΟΙΒΗ 01-01-2023
A1: Υπολογισμός Μηνιαίας Αμοιβής (με βάση τις διατάξεις του άρθρου 39, παρ. 9 του ν. 4387/2016)
A4: Κριτήρια υπολογισμού
A5: Ταμείο | B5: Επιλέξτε
A6: Υπαγωγή σε Φ.Π.Α. | B6: Επιλέξτε
A7: Υπολογισμός με βάση | B7: Επιλέξτε
A8: Ποσό | B8: 0
A10: * Μετά τη συμπλήρωση των παραπάνω κριτηρίων επιλέξτε «Υπολογισμός»
A13: Αποτελέσματα υπολογισμού
A14: Συνολική Αξία | B14: 0
A15: Φ.Π.Α. | B15: 0
A16: Καθαρή Αξία | B16: 0
A18: Εισφορές Εργοδότη | B18: 0
A19: Μηνιαίο Κόστος | B19: 0
A21: Παρακράτηση Φόρου 20% | B21: 0
A22: Εισφορές Δικαιούχου | B22: 0
A23: Πληρωτέο Ποσό (περιέχει Φ.Π.Α.) | B23: 0
A26: Παρατηρήσεις
A27: ΕΦΚΑ (πρώην ΟΑΕΕ) | B27: Κράτηση Δικαιούχου | C27: Εισφορά Εργοδότη
A28: ΕΦΚΑ ΣΥΝΤΑΞΗ | B28: 0.0667 | C28: 0.1333
A29: ΕΦΚΑ ΥΓ.ΠΕΡΙΘΑΛΨΗ | B29: 0.0255 | C29: 0.0455
A30: Σύνολο | B30: =SUM(B28:B29) -> 0.0922 | C30: =SUM(C28:C29) -> 0.1788
A32: ΕΦΚΑ (πρώην ΤΣΜΕΔΕ) | B32: Κράτηση Δικαιούχου | C32: Εισφορά Εργοδότη
A33: ΕΦΚΑ ΣΥΝΤΑΞΗ | B33: 0.0667 | C33: 0.1333
A34: ΕΦΚΑ ΥΓ.ΠΕΡΙΘΑΛΨΗ | B34: 0.0255 | C34: 0.0455
A35: ΕΦΚΑ ΕΠΙΚΟΥΡΙΚΟ (1η κατηγορία) | B35: 21.38 | C35: 21.38
A36: ΕΦΚΑ ΕΦΑΠΑΞ (1η κατηγορία) | B36: 28.51 | C36: 0
A38: Ποσά ασφάλισης σε περίπτωση επιλογής διαφορετικής κατηγορίας
A39: ΕΦΚΑ ΕΠΙΚΟΥΡΙΚΟ (2η κατηγορία) | B39: 25.76 | C39: 25.77
A40: ΕΦΚΑ ΕΦΑΠΑΞ (2η κατηγορία) | B40: 33.99 | C40: 0
A41: ΕΦΚΑ ΕΠΙΚΟΥΡΙΚΟ (3η κατηγορία) | B41: 30.7 | C41: 30.7
A42: ΕΦΚΑ ΕΦΑΠΑΞ (3η κατηγορία) | B42: 40.57 | C42: 0

Sheet Υπολογισμός αμοιβών - εισφορών
A1: Τ.Π.Υ. (υπαγόμενοι στην παρ.9, άρθρ.39, Ν.4387/2016) | E1: Τ.Π.Υ. (υπαγόμενοι στην παρ.9, άρθρ.39, Ν.4387/2016) | I1: Τ.Π.Υ. (υπαγόμενοι στην παρ.9, άρθρ.39, Ν.4387/2016) | M1: Τ.Π.Υ. (υπαγόμενοι στην παρ.9, άρθρ.39, Ν.4387/2016)
A2: Ταμείο ασφαλισμένου: Ο.Α.Ε.Ε. | E2: Ταμείο ασφαλισμένου: Ο.Α.Ε.Ε. | I2: Ταμείο ασφαλισμένου: Τ.Σ.Μ.Ε.Δ.Ε. | M2: Ταμείο ασφαλισμένου: Τ.Σ.Μ.Ε.Δ.Ε.
A3: Υπαγωγή σε ΦΠΑ: ΝΑΙ | E3: Υπαγωγή σε ΦΠΑ: ΌΧΙ | I3: Υπαγωγή σε ΦΠΑ: ΝΑΙ | M3: Υπαγωγή σε ΦΠΑ: ΌΧΙ
A5: Ποσό Σύμβασης / Συνολική Αξία | B5: 1000 | E5: Ποσό Σύμβασης / Συνολική Αξία | F5: 1000 | I5: Μήνες Σύμβασης | J5: 1 | M5: Μήνες Σύμβασης | N5: 1
A6: Φ.Π.Α. | B6: =B5-B7 -> 193.55 | E6: Φ.Π.Α. | F6: 0
A7: Ποσό χωρίς ΦΠΑ / Καθαρή Αξία | B7: =ROUND(B5/1.24,2) -> 806.45 | E7: Ποσό χωρίς ΦΠΑ / Καθαρή Αξία | F7: =F5 -> 1000 | I7: Ποσό Σύμβασης / Συνολική Αξία | J7: 1000 | M7: Ποσό Σύμβασης / Συνολική Αξία | N7: 1000
I8: Φ.Π.Α. | J8: =J7-J9 -> 193.55 | M8: Φ.Π.Α. | N8: 0
A9: Φόρος | B9: =ROUND(B7*20/100,2) -> 161.29 | E9: Φόρος | F9: =ROUND(F7*20/100,2) -> 200 | I9: Ποσό χωρίς ΦΠΑ / Καθαρή Αξία | J9: =ROUND(J7/1.24,2) -> 806.45 | M9: Ποσό χωρίς ΦΠΑ / Καθαρή Αξία | N9: =N7 -> 1000
B11: Ασφαλ. | C11: Εργοδ. | F11: Ασφαλ. | G11: Εργοδ. | I11: Φόρος | J11: =ROUND(J9*20/100,2) -> 161.29 | M11: Φόρος | N11: =ROUND(N9*20/100,2) -> 200
A12: ΕΦΚΑ Σύνταξη | B12: =ROUND(B7*6.67/100,2) -> 53.79 | C12: =ROUND(B7*13.33/100,2) -> 107.5 | E12: ΕΦΚΑ Σύνταξη | F12: =ROUND(F7*6.67/100,2) -> 66.7 | G12: =ROUND(F7*13.33/100,2) -> 133.3
A13: ΕΦΚΑ Υγ.Περίθαλψη | B13: =ROUND(B7*2.55/100,2) -> 20.56 | C13: =ROUND(B7*4.55/100,2) -> 36.69 | E13: ΕΦΚΑ Υγ.Περίθαλψη | F13: =ROUND(F7*2.55/100,2) -> 25.5 | G13: =ROUND(F7*4.55/100,2) -> 45.5 | J13: Ασφαλ. | K13: Εργοδ. | N13: Ασφαλ. | O13: Εργοδ.
A14: Σύνολο ΕΦΚΑ | B14: =SUM(B12:B13) -> 74.35 | C14: =SUM(C12:C13) -> 144.19 | E14: Σύνολο ΕΦΚΑ | F14: =SUM(F12:F13) -> 92.2 | G14: =SUM(G12:G13) -> 178.8 | I14: ΕΦΚΑ Σύνταξη | J14: =ROUND(J9*6.67/100,2) -> 53.79 | K14: =ROUND(J9*13.33/100,2) -> 107.5 | M14: ΕΦΚΑ Σύνταξη | N14: =ROUND(N9*6.67/100,2) -> 66.7 | O14: =ROUND(N9*13.33/100,2) -> 133.3
I15: ΕΦΚΑ Υγ.Περίθαλψη | J15: =ROUND(J9*2.55/100,2) -> 20.56 | K15: =ROUND(J9*4.55/100,2) -> 36.69 | M15: ΕΦΚΑ Υγ.Περίθαλψη | N15: =ROUND(N9*2.55/100,2) -> 25.5 | O15: =ROUND(N9*4.55/100,2) -> 45.5
A16: Τελικό ποσό (μετά την αφαίρεση του Φ.Π.Α.) | B16: =B7-B9-B14 -> 570.81 | E16: Πληρωτέο ποσό | F16: =F5-F9-F14 -> 707.8 | I16: ΕΦΚΑ Επικουρικό (1η ασφ.κατηγ.) | J16: =21.38*J5 -> 21.38 | K16: =21.38*J5 -> 21.38 | M16: ΕΦΚΑ Επικουρικό (1η ασφ.κατηγ.) | N16: =21.38*N5 -> 21.38 | O16: =21.38*N5 -> 21.38
I17: ΕΦΚΑ Εφάπαξ (1η ασφ.κατηγ.) | J17: =28.51*J5 -> 28.51 | K17: 0 | M17: ΕΦΚΑ Εφάπαξ (1η ασφ.κατηγ.) | N17: =28.51*N5 -> 28.51 | O17: 0
A18: Πληρωτέο ποσό (περιέχει Φ.Π.Α.) | B18: =B5-B9-B14 -> 764.36 | E18: Κόστος | F18: =F5+G14 -> 1178.8 | I18: Σύνολο ΕΦΚΑ | J18: =SUM(J14:J17) -> 124.24 | K18: =SUM(K14:K17) -> 165.57 | M18: Σύνολο ΕΦΚΑ | N18: =SUM(N14:N17) -> 142.09 | O18: =SUM(O14:O17) -> 200.18
A20: Κόστος | B20: =B5+C14 -> 1144.19 | I20: Τελικό ποσό (μετά την αφαίρεση του Φ.Π.Α.) | J20: =J9-J11-J18 -> 520.92 | M20: Πληρωτέο ποσό | N20: =N7-N11-N18 -> 657.91
I22: Πληρωτέο ποσό (περιέχει Φ.Π.Α.) | J22: =J7-J11-J18 -> 714.47 | M22: Κόστος | N22: =N7+O18 -> 1200.18
A24: Παρατηρήσεις: | I24: Κόστος | J24: =J7+K18 -> 1165.57
A25: - Συμπληρώστε το ποσό της σύμβασης / συνολικής αξίας
A26: - Για διαφορετική βάση υπολογισμού επιλέξετε: Data \ What-if Analysis \ Goal Seek
A27: - Ο υπολογισμός γίνεται με βάση τον αλγόριθμο του resCom
A29: Βάση υπολογισμού
A30: Το ποσό της σύμβασης
A31: Το κόστος στο έργο
A32: Τελικό ποσό προς δικαιούχο (μετά την αφαίρεση του Φ.Π.Α.)

Sheet ---

Sheet ΠΠΥ-ΤΙΤΛΟΣ ΚΤΗΣΗΣ 01-01-2024
A1: Υπολογισμός Αμοιβής με Παραστατικό Παρεχόμενων Υπηρεσιών (Τίτλος Κτήσης - πρώην Απόδειξη Επαγγελματικής Δαπάνης)
A4: Ποσό αμοιβής | B4: 5000
A5: Αριθμός παραστατικών (πληρωμών) | B5: 1
A6: * Ο υπολογισμός δεν λαμβάνει υπόψη το μηνιαίο όριο των ασφαλιστικών εισφορών
B8: ΑΝΑ Π.Π.Υ. | C8: ΣΥΝΟΛΙΚΑ
A9: Αξία παραστατικού | B9: =ROUND(B4/B5,2) -> 5000 | C9: =B9*$B$5 -> 5000
A11: Φόρος (20%) | B11: =ROUND(B9*20/100,2) -> 1000 | C11: =B11*$B$5 -> 1000
A12: Χαρτόσημο και ΟΓΑ Χαρτοσήμου (3,60%) | B12: =ROUND(B9*3.6/100,2) -> 180 | C12: 180
A13: Καθαρή αξία παραστατικού | B13: =B9-B11-B12 -> 3820 | C13: 3820
A15: Ασφαλιστικές εισφορές ΕΦΚΑ
A16: Κύρια Σύνταξη (13,33%) | B16: =MIN(ROUND(B13*13.33/100,2),B29) -> 175.83 | C16: =B16*$B$5 -> 175.83
A17: Υγειονομική Περίθαλψη (6,95%) | B17: =MIN(ROUND(B13*6.95/100,2),B30) -> 62.39 | C17: 62.39
A18: Σύνολο ΕΦΚΑ | B18: =SUM(B16:B17) -> 238.22 | C18: 238.22
A20: Σύνολο κρατήσεων | B20: =B11+B12+B16+B17 -> 1418.22 | C20: =B20*$B$5 -> 1418.22
A22: Πληρωτέο ποσό | B22: =B9-B20 -> 3581.78 | C22: =B22*$B$5 -> 3581.78
A25: Παρατηρήσεις
A26: Οι αασφαλιστικές εισφορές υπολογίζονται επί της καθαρής αξίας του παραστατικού
A28: Το ποσό των ασφαλιστικών εισφορών ανά Παραστατικό Παρεχόμενων Υπηρεσιών δεν μπορεί να υπερβαίνει:
A29: Για Κύρια Σύνταξη | B29: 175.83
A30: Για Υγειονομική Περίθαλψη | B30: 62.39
A32: Το ποσό των ασφαλιστικών εισφορών για το σύνολο των Παραστατικών Παρεχόμενων Υπηρεσιών ανά μήνα δεν μπορεί να υπερβαίνει:
A33: Για Κύρια Σύνταξη | B33: 567.19
A34: Για Υγειονομική Περίθαλψη | B34: 74.87
A37: Παρατηρήσεις
A38: - Εγκύκλιος ΕΦΚΑ 33/11-10-2022 (ΑΔΑ: ΡΙΓΒ46ΜΑΠΣ-ΚΥΚ)
A39: - Αφορά τα φυσικά πρόσωπα (ιδιώτες) για τα οποία, σύμφωνα με την φορολογική νομοθεσία, εκδίδεται Παραστατικό Παρεχόμενων Υπηρεσιών (Π.Π.Υ.) ως παραστατικό αμοιβής τους για πώληση προϊόντων ή παροχή υπηρεσιών που ασκείται ως ευκαιριακή και παρεπόμενη δραστηριότητα, εφόσον οι συναλλαγές αυτές στο σύνολό τους δεν υπερβαίνουν το ποσό των 10.000 ευρώ ετησίως και δεν έχουν υποχρέωση έναρξης εργασιών στη Δ.Ο.Υ. για την δραστηριότητά τους αυτή, ανεξάρτητα, εάν, για τα πρόσωπα αυτά προκύπτει υποχρεωτική ασφάλιση στον e – Ε.Φ.Κ.Α. λόγω άσκησης άλλης επαγγελματικής δραστηριότητας ή ιδιότητας, μη συναφούς προς τις αμειβόμενες με Π.Π.Υ. υπηρεσίες
A40: - Ως τεκμήριο υπαγωγής ορίζεται η περιστασιακή και παρεπόμενη δραστηριότητα
A41: - Δεν εμπίπτουν σχέσεις με χαρακτηριστικά, αμιγώς, συμβάσεων εργασίας ή έργου ή με χαρακτηριστικά προσομοιάζοντα

Sheet ΜΙΣΘΟΔΟΣΙΑ ΙΔΟΧ 01-01-2024
A1: ΜΙΣΘΟΔΟΣΙΑ ΜΗΝΟΣ ΑΠΑΣΧΟΛΟΥΜΕΝΟΥ ΜΕ ΣΥΜΒΑΣΗ Ι.Δ.Ο.Χ.
A4: ΑΠΟΔΟΧΕΣ (ΜΙΚΤΑ) | B4: 1162
A7: Κρατήσεις | B7: Εργαζόμενου | C7: Εργοδότη | D7: Σύνολο
A8: ΕΦΚΑ | B8: =ROUND(MIN($B$4,$B$25)*B23,2) -> 161.17 | C8: =ROUND(MIN($B$4,$B$25)*C23,2) -> 259.01 | D8: =B8+C8 -> 420.18
A9: Φόρος Μισθωτών Υπηρεσιών | B9: =fpayTax(payMikta,payEfka,payKids) -> 48.77
A10: ΣΥΝΟΛΟ ΚΡΑΤΗΣΕΩΝ | B10: =B8+B9 -> 209.94 | C10: =C8 -> 259.01
A13: ΠΛΗΡΩΤΕΟ ΠΟΣΟ | B13: =B4-B10 -> 952.06
A16: ΚΟΣΤΟΣ (Μικτά + Εργοδοτικές Εισφορές) | B16: =B4+C10 -> 1421.01
A19: Αριθμός παιδιών | B19: 0
A22: Ασφαλιστικές Εισφορές ΕΦΚΑ | B22: Εργαζόμενου | C22: Εργοδότη | D22: Σύνολο
A23: ΜΙΚΤΑ, ΙΚΑ-ΤΕΑΜ | B23: 0.1387 | C23: 0.2229 | D23: =B23+C23 -> 0.3616
A25: * Ανώτατο όριο ασφαλιστέων αποδοχών | B25: 7373.53
